[Event "Kvibergspelen September 2019"]
[Site "Prioritet Serneke Arena, Krutvagen 2, Gothenburg, Sweden"]
[Date "2019.09.27"]
[Round "2.17"]
[White "Fransson, Lennart"]
[Black "Pham, Bich Ngoc"]
[Result "0-1"]
[TimeControl "15 minutes + 5 seconds per move from move one (Round 1 - 4) / 90 minutes + 30 seconds per move from move one (Round 5 - 8)"]
[BlackTitle "WIM"]
[WhiteFideId "1706756"]
[BlackFideId "12401285"]
[WhiteElo "2008"]
[BlackElo "2244"]

1. c4 {[%clk 00:15:06]} {[%emt 00:00:03]} g6 {[%clk 00:15:08]} {[%emt
00:00:03]} 2. g3 {[%clk 00:15:09]} {[%emt 00:00:02]} Bg7 {[%clk 00:15:12]}
{[%emt 00:00:02]} 3. Bg2 {[%clk 00:15:12]} {[%emt 00:00:01]} f5 {[%clk
00:15:15]} {[%emt 00:00:03]} 4. Nc3 {[%clk 00:14:38]} {[%emt 00:00:38]} Nf6
{[%clk 00:15:18]} {[%emt 00:00:03]} 5. d3 {[%clk 00:14:35]} {[%emt 00:00:07]}
d6 {[%clk 00:15:18]} {[%emt 00:00:06]} 6. e3 {[%clk 00:14:25]} {[%emt
00:00:14]} e5 {[%clk 00:15:11]} {[%emt 00:00:13]} 7. Nge2 {[%clk 00:14:26]}
{[%emt 00:00:03]} c6 {[%clk 00:15:13]} {[%emt 00:00:03]} 8. O-O {[%clk
00:14:21]} {[%emt 00:00:10]} O-O {[%clk 00:15:16]} {[%emt 00:00:03]} 9. Rb1
{[%clk 00:14:25]} Be6 {[%clk 00:15:15]} {[%emt 00:00:07]} 10. f4 {[%clk
00:14:09]} {[%emt 00:00:20]} Nbd7 {[%clk 00:15:00]} {[%emt 00:00:21]} 11. b3
{[%clk 00:13:40]} {[%emt 00:00:33]} a5 {[%clk 00:14:33]} {[%emt 00:00:32]} 12.
h3 {[%clk 00:13:38]} {[%emt 00:00:06]} Qc7 {[%clk 00:14:24]} {[%emt 00:00:15]}
13. d4 {[%clk 00:12:46]} {[%emt 00:00:57]} e4 {[%clk 00:14:19]} {[%emt
00:00:10]} 14. Ba3 {[%clk 00:12:03]} {[%emt 00:00:48]} Bf7 {[%clk 00:13:45]}
{[%emt 00:00:40]} 15. Rc1 {[%clk 00:12:05]} {[%emt 00:00:02]} Rab8 {[%clk
00:13:39]} {[%emt 00:00:10]} 16. Kh2 {[%clk 00:11:46]} {[%emt 00:00:25]} Rfd8
{[%clk 00:13:03]} {[%emt 00:00:41]} 17. Rg1 {[%clk 00:11:31]} {[%emt 00:00:20]}
Nf8 {[%clk 00:12:52]} {[%emt 00:00:17]} 18. Bh1 {[%clk 00:11:15]} {[%emt
00:00:20]} Qd7 {[%clk 00:12:55]} {[%emt 00:00:03]} 19. g4 {[%clk 00:10:01]}
{[%emt 00:01:18]} fxg4 {[%clk 00:12:19]} {[%emt 00:00:42]} 20. Bxe4 {[%clk
00:09:28]} {[%emt 00:00:37]} Re8 {[%clk 00:12:05]} {[%emt 00:00:20]} 21. Qd3
{[%clk 00:08:58]} {[%emt 00:00:34]} gxh3 {[%clk 00:11:59]} {[%emt 00:00:11]} 22.
Bf3 {[%clk 00:08:57]} {[%emt 00:00:06]} Be6 {[%clk 00:11:13]} {[%emt 00:00:51]}
23. e4 {[%clk 00:08:43]} {[%emt 00:00:18]} Ng4+ {[%clk 00:10:52]} {[%emt
00:00:26]} 24. Bxg4 {[%clk 00:08:43]} {[%emt 00:00:05]} Bxg4 {[%clk 00:10:56]}
{[%emt 00:00:02]} 25. Ng3 {[%clk 00:07:13]} {[%emt 00:01:35]} Ne6 {[%clk
00:10:49]} {[%emt 00:00:12]} 26. Rcf1 {[%clk 00:07:11]} {[%emt 00:00:06]} Nxd4
{[%clk 00:10:33]} {[%emt 00:00:21]} 27. c5 {[%clk 00:06:37]} {[%emt 00:00:39]}
dxc5 {[%clk 00:10:23]} {[%emt 00:00:16]} 28. Bxc5 {[%clk 00:06:11]} {[%emt
00:00:31]} b6 {[%clk 00:10:27]} {[%emt 00:00:02]} 29. Ba3 {[%clk 00:06:01]}
{[%emt 00:00:14]} Rbd8 {[%clk 00:10:27]} {[%emt 00:00:05]} 30. Qe3 {[%clk
00:05:49]} {[%emt 00:00:17]} Nc2 {[%clk 00:10:26]} {[%emt 00:00:05]} 0-1

[Event "Kvibergspelen September 2019"]
[Site "Prioritet Serneke Arena, Krutvagen 2, Gothenburg, Sweden"]
[Date "2019.09.27"]
[Round "2.18"]
[White "Petersson, Baldur Teodor"]
[Black "Jonsson, Jacob"]
[Result "1-0"]
[TimeControl "15 minutes + 5 seconds per move from move one (Round 1 - 4) / 90 minutes + 30 seconds per move from move one (Round 5 - 8)"]
[WhiteTitle "CM"]
[WhiteFideId "2309157"]
[BlackFideId "1726315"]
[WhiteElo "2238"]
[BlackElo "2029"]

1. e4 {[%clk 00:15:08]} {[%emt 00:00:02]} e6 {[%clk 00:15:09]} {[%emt
00:00:01]} 2. d3 {[%clk 00:15:06]} {[%emt 00:00:07]} g6 {[%clk 00:15:04]}
{[%emt 00:00:10]} 3. Nc3 {[%clk 00:15:04]} {[%emt 00:00:06]} Bg7 {[%clk
00:15:07]} {[%emt 00:00:02]} 4. g3 {[%clk 00:15:08]} {[%emt 00:00:02]} Ne7
{[%clk 00:15:10]} {[%emt 00:00:02]} 5. Bg2 {[%clk 00:15:11]} {[%emt 00:00:02]}
c5 {[%clk 00:15:06]} {[%emt 00:00:09]} 6. f4 {[%clk 00:15:12]} {[%emt
00:00:04]} d5 {[%clk 00:14:48]} {[%emt 00:00:23]} 7. e5 {[%clk 00:15:15]}
{[%emt 00:00:02]} Nbc6 {[%clk 00:13:47]} {[%emt 00:01:06]} 8. Nf3 {[%clk
00:15:18]} {[%emt 00:00:02]} b6 {[%clk 00:13:34]} {[%emt 00:00:19]} 9. Nb5
{[%clk 00:14:56]} {[%emt 00:00:27]} Nf5 {[%clk 00:11:38]} {[%emt 00:02:01]} 10.
g4 {[%clk 00:14:23]} {[%emt 00:00:37]} Nh4 {[%clk 00:10:30]} {[%emt 00:01:13]}
11. Nd6+ {[%clk 00:14:22]} {[%emt 00:00:06]} Kf8 {[%clk 00:10:32]} {[%emt
00:00:02]} 12. O-O {[%clk 00:14:18]} {[%emt 00:00:10]} Nxf3+ {[%clk 00:09:16]}
{[%emt 00:01:22]} 13. Qxf3 {[%clk 00:13:47]} {[%emt 00:00:35]} h5 {[%clk
00:08:56]} {[%emt 00:00:25]} 14. g5 {[%clk 00:10:59]} {[%emt 00:02:53]} Ba6
{[%clk 00:08:04]} {[%emt 00:00:57]} 15. c3 {[%clk 00:10:25]} {[%emt 00:00:39]}
Ne7 {[%clk 00:06:54]} {[%emt 00:01:15]} 16. b4 {[%clk 00:06:49]} {[%emt
00:03:41]} Rb8 {[%clk 00:04:10]} {[%emt 00:02:50]} 17. b5 {[%clk 00:06:14]}
{[%emt 00:00:39]} Bb7 {[%clk 00:03:58]} {[%emt 00:00:18]} 18. a4 {[%clk
00:06:16]} {[%emt 00:00:02]} a5 {[%clk 00:03:38]} {[%emt 00:00:26]} 19. Ba3
{[%clk 00:06:00]} {[%emt 00:00:20]} Kg8 {[%clk 00:03:15]} {[%emt 00:00:28]} 20.
d4 {[%clk 00:05:55]} {[%emt 00:00:10]} c4 {[%clk 00:02:55]} {[%emt 00:00:26]}
21. Qh3 {[%clk 00:04:30]} {[%emt 00:01:29]} Nf5 {[%clk 00:02:26]} {[%emt
00:00:34]} 22. Nxf5 {[%clk 00:04:27]} {[%emt 00:00:07]} exf5 {[%clk 00:02:19]}
{[%emt 00:00:13]} 23. Bd6 {[%clk 00:04:20]} {[%emt 00:00:13]} Ra8 {[%clk
00:02:01]} {[%emt 00:00:23]} 24. Rfe1 {[%clk 00:04:08]} {[%emt 00:00:16]} Qd7
{[%clk 00:01:41]} {[%emt 00:00:25]} 25. Bf3 {[%clk 00:03:52]} {[%emt 00:00:21]}
Bf8 {[%clk 00:01:25]} {[%emt 00:00:21]} 26. Bxf8 {[%clk 00:03:48]} {[%emt
00:00:09]} Rxf8 {[%clk 00:01:25]} {[%emt 00:00:05]} 27. e6 {[%clk 00:02:35]}
{[%emt 00:01:19]} fxe6 {[%clk 00:01:25]} {[%emt 00:00:05]} 28. Re5 {[%clk
00:02:38]} {[%emt 00:00:01]} Rh7 {[%clk 00:00:38]} {[%emt 00:00:52]} 29. Rae1
{[%clk 00:02:36]} {[%emt 00:00:07]} Bc8 {[%clk 00:00:28]} {[%emt 00:00:15]} 30.
Qg2 {[%clk 00:02:24]} {[%emt 00:00:17]} Qf7 {[%clk 00:00:24]} {[%emt 00:00:09]}
31. Rxd5 {[%clk 00:02:00]} {[%emt 00:00:29]} exd5 {[%clk 00:00:27]} {[%emt
00:00:02]} 32. Bxd5 {[%clk 00:02:03]} {[%emt 00:00:01]} Bd7 {[%clk 00:00:17]}
{[%emt 00:00:16]} 33. Re7 {[%clk 00:01:53]} {[%emt 00:00:14]} Kh8 {[%clk
00:00:20]} {[%emt 00:00:03]} 34. Bxf7 {[%clk 00:01:47]} {[%emt 00:00:11]} Rhxf7
{[%clk 00:00:24]} {[%emt 00:00:01]} 35. Rxf7 {[%clk 00:01:48]} {[%emt
00:00:05]} Rxf7 {[%clk 00:00:24]} {[%emt 00:00:04]} 36. Qd5 {[%clk 00:01:50]}
{[%emt 00:00:03]} Kg7 {[%clk 00:00:23]} {[%emt 00:00:06]} 37. Qxc4 {[%clk
00:01:53]} {[%emt 00:00:02]} Re7 {[%clk 00:00:22]} {[%emt 00:00:07]} 38. Qd5
{[%clk 00:01:54]} {[%emt 00:00:03]} Be8 {[%clk 00:00:19]} {[%emt 00:00:08]} 39.
Kf2 {[%clk 00:01:55]} {[%emt 00:00:04]} Bf7 {[%clk 00:00:21]} {[%emt 00:00:03]}
40. Qd6 {[%clk 00:01:57]} {[%emt 00:00:02]} Re6 {[%clk 00:00:25]} {[%emt
00:00:02]} 41. Qc7 {[%clk 00:02:01]} Kg8 {[%clk 00:00:28]} {[%emt 00:00:02]} 42.
c4 {[%clk 00:01:54]} {[%emt 00:00:12]} Re4 {[%clk 00:00:31]} {[%emt 00:00:02]}
43. Qxb6 {[%clk 00:01:57]} {[%emt 00:00:02]} Rxf4+ {[%clk 00:00:35]} 44. Ke3
{[%clk 00:01:57]} {[%emt 00:00:04]} Re4+ {[%clk 00:00:39]} {[%emt 00:00:02]} 45.
Kd3 {[%clk 00:02:01]} Rh4 {[%clk 00:00:43]} 46. Qb8+ {[%clk 00:01:43]} {[%emt
00:00:23]} Kg7 {[%clk 00:00:44]} {[%emt 00:00:04]} 47. Qe5+ {[%clk 00:01:47]}
{[%emt 00:00:02]} Kg8 {[%clk 00:00:47]} {[%emt 00:00:02]} 48. b6 {[%clk
00:01:42]} {[%emt 00:00:10]} Rh3+ {[%clk 00:00:45]} {[%emt 00:00:06]} 49. Kd2
{[%clk 00:01:45]} {[%emt 00:00:01]} Rb3 {[%clk 00:00:48]} {[%emt 00:00:02]} 50.
Qb5 {[%clk 00:01:32]} {[%emt 00:00:19]} Rxb5 {[%clk 00:00:33]} {[%emt
00:00:20]} 51. axb5 {[%clk 00:01:35]} {[%emt 00:00:01]} a4 {[%clk 00:00:36]}
{[%emt 00:00:01]} 52. b7 {[%clk 00:01:39]} {[%emt 00:00:02]} 1-0

[Event "Kvibergspelen September 2019"]
[Site "Prioritet Serneke Arena, Krutvagen 2, Gothenburg, Sweden"]
[Date "2019.09.27"]
[Round "2.19"]
[White "Persson, Ulf"]
[Black "Crevatin, Leo"]
[Result "1/2-1/2"]
[TimeControl "15 minutes + 5 seconds per move from move one (Round 1 - 4) / 90 minutes + 30 seconds per move from move one (Round 5 - 8)"]
[BlackTitle "CM"]
[WhiteFideId "1726854"]
[BlackFideId "1726307"]
[WhiteElo "1991"]
[BlackElo "2235"]

1. e4 {[%clk 00:15:07]} {[%emt 00:00:03]} c5 {[%clk 00:15:09]} 2. Nc3 {[%clk
00:15:09]} {[%emt 00:00:03]} Nc6 {[%clk 00:15:14]} 3. g4 {[%clk 00:15:11]}
{[%emt 00:00:04]} g6 {[%clk 00:15:08]} {[%emt 00:00:11]} 4. h3 {[%clk
00:15:04]} {[%emt 00:00:11]} Bg7 {[%clk 00:15:11]} {[%emt 00:00:02]} 5. Bg2
{[%clk 00:15:07]} {[%emt 00:00:02]} d6 {[%clk 00:15:12]} {[%emt 00:00:05]} 6.
d3 {[%clk 00:14:58]} {[%emt 00:00:14]} h5 {[%clk 00:14:57]} {[%emt 00:00:20]} 7.
gxh5 {[%clk 00:14:33]} {[%emt 00:00:30]} Rxh5 {[%clk 00:15:00]} {[%emt
00:00:02]} 8. Be3 {[%clk 00:13:54]} {[%emt 00:00:44]} e5 {[%clk 00:14:37]}
{[%emt 00:00:28]} 9. Nd5 {[%clk 00:13:37]} {[%emt 00:00:21]} Be6 {[%clk
00:14:33]} {[%emt 00:00:08]} 10. c3 {[%clk 00:13:29]} {[%emt 00:00:15]} Qd7
{[%clk 00:13:59]} {[%emt 00:00:38]} 11. Qd2 {[%clk 00:13:03]} {[%emt 00:00:30]}
O-O-O {[%clk 00:12:37]} {[%emt 00:01:28]} 12. O-O-O {[%clk 00:13:01]} {[%emt
00:00:06]} Kb8 {[%clk 00:12:16]} {[%emt 00:00:27]} 13. Kb1 {[%clk 00:13:04]}
{[%emt 00:00:02]} f5 {[%clk 00:11:43]} {[%emt 00:00:38]} 14. f4 {[%clk
00:12:49]} {[%emt 00:00:20]} Nf6 {[%clk 00:11:19]} {[%emt 00:00:29]} 15. Qf2
{[%clk 00:11:08]} {[%emt 00:01:46]} Qf7 {[%clk 00:09:43]} {[%emt 00:01:41]} 16.
c4 {[%clk 00:10:29]} {[%emt 00:00:44]} Rdh8 {[%clk 00:09:13]} {[%emt 00:00:35]}
17. Nf3 {[%clk 00:10:19]} {[%emt 00:00:15]} Nd7 {[%clk 00:07:23]} {[%emt
00:01:55]} 18. Ng5 {[%clk 00:09:32]} {[%emt 00:00:52]} Qe8 {[%clk 00:07:14]}
{[%emt 00:00:14]} 19. Bf3 {[%clk 00:08:02]} {[%emt 00:01:35]} Rh4 {[%clk
00:06:20]} {[%emt 00:00:59]} 20. Qg2 {[%clk 00:06:59]} {[%emt 00:01:07]} Bxd5
{[%clk 00:05:47]} {[%emt 00:00:39]} 21. cxd5 {[%clk 00:06:47]} {[%emt
00:00:17]} Nd8 {[%clk 00:05:49]} {[%emt 00:00:03]} 22. Bf2 {[%clk 00:04:15]}
{[%emt 00:02:37]} R4h6 {[%clk 00:05:17]} {[%emt 00:00:36]} 23. Bg3 {[%clk
00:03:53]} {[%emt 00:00:27]} fxe4 {[%clk 00:04:23]} {[%emt 00:00:59]} 24. Nxe4
{[%clk 00:03:22]} {[%emt 00:00:36]} Qe7 {[%clk 00:04:03]} {[%emt 00:00:25]} 25.
Rde1 {[%clk 00:03:22]} {[%emt 00:00:06]} Nf7 {[%clk 00:03:55]} {[%emt
00:00:13]} 26. Bg4 {[%clk 00:03:00]} {[%emt 00:00:26]} Nf8 {[%clk 00:02:54]}
{[%emt 00:01:07]} 27. Rhf1 {[%clk 00:02:59]} {[%emt 00:00:05]} Qc7 {[%clk
00:02:36]} {[%emt 00:00:23]} 28. Ng5 {[%clk 00:02:40]} {[%emt 00:00:24]} Nxg5
{[%clk 00:02:24]} {[%emt 00:00:17]} 29. fxg5 {[%clk 00:02:44]} {[%emt
00:00:01]} R6h7 {[%clk 00:02:28]} 30. Rf2 {[%clk 00:02:16]} {[%emt 00:00:33]}
Qe7 {[%clk 00:02:09]} {[%emt 00:00:24]} 31. h4 {[%clk 00:02:09]} {[%emt
00:00:11]} Nd7 {[%clk 00:01:05]} {[%emt 00:01:10]} 32. Ref1 {[%clk 00:01:53]}
{[%emt 00:00:21]} Nb6 {[%clk 00:00:22]} {[%emt 00:00:48]} 33. Rf7 {[%emt
00:00:22]} Qd8 34. Be6 {[%clk 00:01:34]} {[%emt 00:00:07]} Bf8 {[%clk
00:00:29]} {[%emt 00:00:02]} 35. Qe4 {[%clk 00:01:25]} {[%emt 00:00:14]} Be7
{[%clk 00:00:27]} {[%emt 00:00:08]} 36. Qxg6 {[%clk 00:01:21]} {[%emt
00:00:09]} Rxf7 {[%clk 00:00:24]} {[%emt 00:00:09]} 37. Rxf7 {[%clk 00:01:17]}
{[%emt 00:00:08]} c4 {[%clk 00:00:22]} {[%emt 00:00:07]} 38. Qg7 {[%emt
00:00:33]} Re8 39. dxc4 {[%clk 00:00:41]} {[%emt 00:00:12]} Nxc4 {[%clk
00:00:31]} {[%emt 00:00:01]} 40. Be1 {[%clk 00:00:23]} {[%emt 00:00:23]} Qb6
{[%clk 00:00:26]} {[%emt 00:00:10]} 41. b3 {[%clk 00:00:13]} {[%emt 00:00:14]}
Na3+ {[%clk 00:00:14]} {[%emt 00:00:18]} 42. Kb2 {[%clk 00:00:14]} {[%emt
00:00:04]} Nc4+ {[%clk 00:00:17]} {[%emt 00:00:02]} 43. Kb1 {[%clk 00:00:15]}
{[%emt 00:00:03]} Na3+ {[%clk 00:00:15]} {[%emt 00:00:07]} 44. Kb2 {[%clk
00:00:19]} Nc4+ {[%clk 00:00:14]} {[%emt 00:00:06]} 45. Kb1 1/2-1/2

[Event "Kvibergspelen September 2019"]
[Site "Prioritet Serneke Arena, Krutvagen 2, Gothenburg, Sweden"]
[Date "2019.09.27"]
[Round "2.20"]
[White "Sjoberg, Isak"]
[Black "Muntean, Victor"]
[Result "0-1"]
[TimeControl "15 minutes + 5 seconds per move from move one (Round 1 - 4) / 90 minutes + 30 seconds per move from move one (Round 5 - 8)"]
[WhiteFideId "1521640"]
[BlackFideId "1054414"]
[WhiteElo "2231"]
[BlackElo "2020"]

1. e4 {[%clk 00:15:08]} e5 {[%clk 00:15:10]} {[%emt 00:00:02]} 2. Nf3 {[%clk
00:15:11]} {[%emt 00:00:02]} Nc6 {[%clk 00:15:14]} {[%emt 00:00:01]} 3. Bc4
{[%clk 00:15:12]} {[%emt 00:00:04]} Nf6 {[%clk 00:15:17]} {[%emt 00:00:02]} 4.
Ng5 {[%clk 00:15:14]} {[%emt 00:00:02]} d5 {[%clk 00:15:16]} {[%emt 00:00:06]}
5. exd5 {[%clk 00:15:09]} {[%emt 00:00:10]} Nd4 {[%clk 00:15:19]} {[%emt
00:00:02]} 6. c3 {[%clk 00:13:12]} {[%emt 00:02:02]} b5 {[%clk 00:15:23]}
{[%emt 00:00:02]} 7. Bf1 {[%clk 00:13:15]} {[%emt 00:00:02]} h6 {[%clk
00:15:26]} {[%emt 00:00:02]} 8. cxd4 {[%clk 00:13:03]} {[%emt 00:00:17]} hxg5
{[%clk 00:15:27]} {[%emt 00:00:05]} 9. dxe5 {[%clk 00:12:37]} {[%emt 00:00:30]}
Nxd5 {[%clk 00:15:26]} {[%emt 00:00:07]} 10. Bxb5+ {[%clk 00:12:39]} {[%emt
00:00:03]} Bd7 {[%clk 00:15:24]} {[%emt 00:00:06]} 11. Qa4 {[%clk 00:12:07]}
{[%emt 00:00:36]} Nb4 {[%clk 00:13:29]} {[%emt 00:02:01]} 12. O-O {[%clk
00:10:46]} {[%emt 00:01:26]} Bxb5 {[%clk 00:12:34]} {[%emt 00:01:00]} 13. Qxb5+
{[%clk 00:10:49]} {[%emt 00:00:02]} c6 {[%clk 00:12:35]} {[%emt 00:00:04]} 14.
Qc4 {[%clk 00:10:26]} {[%emt 00:00:26]} Qd3 {[%clk 00:12:23]} {[%emt 00:00:20]}
15. Na3 {[%clk 00:09:14]} {[%emt 00:01:17]} Rh4 {[%clk 00:10:30]} {[%emt
00:01:58]} 16. Qxd3 {[%clk 00:07:28]} {[%emt 00:01:51]} Nxd3 {[%clk 00:10:34]}
{[%emt 00:00:02]} 17. Nc2 {[%clk 00:07:31]} {[%emt 00:00:01]} Re4 {[%clk
00:09:02]} {[%emt 00:01:36]} 18. b3 {[%clk 00:07:19]} {[%emt 00:00:17]} Rxe5
{[%clk 00:08:31]} {[%emt 00:00:37]} 19. Nd4 {[%clk 00:06:22]} {[%emt 00:01:02]}
Bc5 {[%clk 00:06:43]} {[%emt 00:01:53]} 20. Nxc6 {[%clk 00:02:32]} {[%emt
00:03:54]} Re2 {[%clk 00:06:45]} {[%emt 00:00:03]} 21. b4 {[%clk 00:02:02]}
{[%emt 00:00:36]} Bxf2+ {[%clk 00:05:36]} {[%emt 00:01:14]} 22. Rxf2 {[%clk
00:02:06]} Nxf2 {[%clk 00:03:27]} {[%emt 00:02:14]} 23. Nd4 {[%clk 00:02:05]}
{[%emt 00:00:05]} Re4 {[%clk 00:03:26]} {[%emt 00:00:06]} 24. Nb5 {[%clk
00:02:08]} {[%emt 00:00:02]} Nd3 {[%clk 00:03:25]} {[%emt 00:00:06]} 25. Nd6+
{[%clk 00:02:12]} {[%emt 00:00:02]} Kf8 {[%clk 00:03:17]} {[%emt 00:00:12]} 26.
Nxe4 {[%clk 00:02:14]} {[%emt 00:00:04]} Re8 {[%clk 00:03:20]} {[%emt
00:00:02]} 27. Ng3 {[%clk 00:01:34]} {[%emt 00:00:44]} Re1+ {[%clk 00:03:11]}
{[%emt 00:00:14]} 28. Nf1 {[%clk 00:01:37]} {[%emt 00:00:02]} Nxc1 {[%clk
00:03:13]} {[%emt 00:00:04]} 29. Rxc1 {[%clk 00:00:41]} {[%emt 00:01:01]} Rxc1
{[%clk 00:03:16]} {[%emt 00:00:01]} 30. Kf2 {[%clk 00:00:39]} {[%emt 00:00:07]}
Ra1 {[%clk 00:03:17]} {[%emt 00:00:04]} 31. Ng3 {[%clk 00:00:37]} {[%emt
00:00:07]} Rxa2 {[%clk 00:03:14]} {[%emt 00:00:09]} 32. Ne4 {[%clk 00:00:41]}
f5 {[%clk 00:03:08]} {[%emt 00:00:11]} 33. Nxg5 {[%clk 00:00:44]} {[%emt
00:00:01]} Rxd2+ {[%clk 00:03:12]} {[%emt 00:00:02]} 34. Kf3 {[%clk 00:00:47]}
Rb2 {[%clk 00:03:13]} {[%emt 00:00:04]} 35. Ne6+ {[%clk 00:00:43]} {[%emt
00:00:09]} Kf7 {[%clk 00:03:12]} {[%emt 00:00:05]} 36. Nd8+ {[%clk 00:00:46]}
{[%emt 00:00:03]} Kf6 {[%clk 00:03:13]} {[%emt 00:00:04]} 37. Nc6 {[%clk
00:00:49]} {[%emt 00:00:01]} g5 {[%clk 00:01:42]} {[%emt 00:01:36]} 38. Nxa7
{[%clk 00:00:51]} {[%emt 00:00:03]} Rxb4 {[%clk 00:01:45]} {[%emt 00:00:03]} 39.
Nc6 {[%clk 00:00:55]} Re4 {[%clk 00:01:35]} {[%emt 00:00:14]} 40. Na5 {[%clk
00:00:34]} {[%emt 00:00:26]} Ra4 {[%clk 00:01:26]} {[%emt 00:00:15]} 41. Nb7
{[%clk 00:00:32]} {[%emt 00:00:07]} Ke5 {[%clk 00:00:56]} {[%emt 00:00:34]} 42.
Nd8 {[%clk 00:00:31]} {[%emt 00:00:06]} g4+ {[%clk 00:00:37]} {[%emt 00:00:25]}
43. Kf2 {[%clk 00:00:25]} {[%emt 00:00:10]} Ra2+ {[%clk 00:00:24]} {[%emt
00:00:18]} 44. Kg3 {[%clk 00:00:28]} {[%emt 00:00:02]} Ra3+ {[%clk 00:00:22]}
{[%emt 00:00:07]} 45. Kf2 {[%clk 00:00:31]} {[%emt 00:00:02]} f4 {[%clk
00:00:24]} {[%emt 00:00:03]} 46. Nf7+ {[%clk 00:00:29]} {[%emt 00:00:07]} Kd5
{[%clk 00:00:14]} {[%emt 00:00:15]} 47. Nh6 {[%clk 00:00:25]} {[%emt 00:00:10]}
Ra2+ {[%clk 00:00:17]} {[%emt 00:00:02]} 48. Kf1 {[%clk 00:00:26]} {[%emt
00:00:03]} g3 {[%clk 00:00:08]} {[%emt 00:00:15]} 49. hxg3 {[%clk 00:00:29]}
{[%emt 00:00:02]} fxg3 {[%clk 00:00:12]} {[%emt 00:00:02]} 50. Nf5 {[%clk
00:00:30]} {[%emt 00:00:04]} Rf2+ {[%clk 00:00:15]} {[%emt 00:00:01]} 0-1